lending/lending_fUSD_20250719
["ID","MTS","AMOUNT","RATE_DAILY","PERIOD"]
[373255910,1752923499074,-876.37,0.00020821,2]
[373255911,1752923499084,-3056.86,0.00020821,2]
[373255912,1752923499094,-1752.83,0.00020821,2]
[373255913,1752923499103,-480.0,0.00020821,2]
[373255914,1752923499112,-480.0,0.00020821,2]
[373255915,1752923499122,-698.66,0.00020821,2]
[373255916,1752923499131,-480.0,0.00020821,2]
[373255917,1752923499141,-1230.21,0.00020821,2]
[373255918,1752923499153,-1211.46,0.00020821,2]
[373255919,1752923499163,-1731.02,0.00020821,2]
[373255920,1752923499174,-480.0,0.00020821,2]
[373255921,1752923499184,-981.21,0.00020821,2]
[373255922,1752923499194,-4034.3,0.00020821,2]
[373255923,1752923499203,-704.38,0.00020821,2]
[373255924,1752923499212,-480.0,0.00020821,2]
[373255925,1752923499221,-311.43,0.00020821,2]
[373255926,1752923499232,-926.13,0.00020821,2]
[373255927,1752923499242,-18345.25,0.00020821,2]
[373255928,1752923499252,-1475.45,0.00020821,2]
[373255929,1752923499262,-1110.95,0.00020821,2]
[373255930,1752923499272,-1405.33,0.00020821,2]
[373255931,1752923499286,-480.0,0.00020821,2]
[373255932,1752923499296,-593.26,0.00020821,2]
[373255933,1752923499305,-2662.0,0.00020821,2]
[373255934,1752923499317,-496.53,0.00020821,2]
[373255935,1752923499326,-1500.91,0.00020821,2]
[373255936,1752923499335,-489.4,0.00020821,2]
[373255937,1752923499345,-594.51,0.00020821,2]
[373255938,1752923499354,-829.66,0.00020821,2]
[373255939,1752923499365,-566.69,0.00020821,2]
[373255940,1752923499374,-658.44,0.00020821,2]
[373255941,1752923499384,-588.02,0.00020821,2]
[373255942,1752923499395,-480.0,0.00020821,2]
[373255943,1752923499405,-2697.72,0.00020821,2]
[373255944,1752923499415,-480.0,0.00020821,2]
[373255945,1752923499425,-870.46,0.00020821,2]
[373255946,1752923499434,-480.0,0.00020821,2]
[373255947,1752923499444,-1772.6,0.00020821,2]
[373255948,1752923499453,-827.86,0.00020821,2]
[373255949,1752923499462,-480.0,0.00020821,2]
[373255950,1752923499471,-793.88,0.00020821,2]
[373255951,1752923499481,-497.53,0.00020821,2]
[373255952,1752923499490,-480.0,0.00020821,2]
[373255953,1752923499499,-557.4,0.00020821,2]
[373255954,1752923499508,-480.0,0.00020821,2]
[373255955,1752923499518,-535.74,0.00020821,2]
[373255956,1752923499527,-496.0,0.00020821,2]
[373255957,1752923499537,-616.76,0.00020821,2]
[373255958,1752923499546,-480.0,0.00020821,2]
[373255959,1752923499555,-480.0,0.00020821,2]
[373255960,1752923499564,-556.1,0.00020821,2]
[373255961,1752923499574,-480.0,0.00020821,2]
[373255962,1752923499583,-480.0,0.00020821,2]
[373255963,1752923499592,-509.79,0.00020821,2]
[373255964,1752923499602,-480.0,0.00020821,2]
[373255965,1752923499611,-488.36,0.00020821,2]
[373255966,1752923499620,-563.29,0.00020821,2]
[373255967,1752923499630,-518.34,0.00020821,2]
[373255968,1752923499639,-480.0,0.00020821,2]
[373255969,1752923499649,-480.0,0.00020821,2]
[373255970,1752923499658,-660.36,0.00020821,2]
[373255971,1752923499668,-563.78,0.00020821,2]
[373255972,1752923499677,-510.22,0.00020821,2]
[373255973,1752923499687,-2035.71,0.00020821,2]
[373255974,1752923499696,-480.0,0.00020821,2]
[373255975,1752923499705,-1478.43,0.00020821,2]
[373255976,1752923499715,-913.51,0.00020821,2]
[373255977,1752923499724,-480.0,0.00020821,2]
[373255978,1752923499734,-1163.42,0.00020821,2]
[373255979,1752923499744,-2145.01,0.00020821,2]
[373255980,1752923499753,-2541.86,0.00020821,2]
[373255981,1752923499762,-918.45,0.00020821,2]
[373255982,1752923499772,-480.0,0.00020821,2]
[373255983,1752923499781,-519.54,0.00020821,2]
[373255984,1752923499790,-484.74,0.00020821,2]
[373255985,1752923499991,-629.95,0.00020821,2]
[373255986,1752923500000,-8079.9,0.00020822,2]
[373255987,1752923500010,-500.0,0.0002083,2]
[373255988,1752923500020,-500.0,0.0002083,2]
[373255989,1752923500029,-1609.21,0.0002083,2]
[373255990,1752923500039,-169947.5729,0.00020831,2]
[373255991,1752923500048,-1000.0,0.00020831,2]
[373255992,1752923500057,-598.86,0.00020857,2]
[373255993,1752923500067,-500.0,0.00020873,2]
[373255994,1752923500076,-500.0,0.00020884,2]
[373255995,1752923500085,-2505.62,0.00020892,2]
[373255996,1752923500097,-3914.44,0.000209,2]
[373255997,1752923500106,-3000.0,0.000209,7]
[373255998,1752923500115,-1180.57821321,0.00020916,2]
[373255999,1752923500125,-1500.0,0.00020916,2]
[373256000,1752923500134,-500.0,0.0002092,2]
[373256001,1752923500145,-2500.0,0.00020922,2]
[373256002,1752923500157,-3762.98405744,0.00020929,2]
[373256003,1752923500167,-440.0,0.0002093,2]
[373256004,1752923500177,-440.0,0.0002093,2]
[373256005,1752923500187,-440.0,0.0002093,2]
[373256006,1752923500197,-480.0,0.0002093,2]
[373256007,1752923500206,-480.0,0.0002093,2]
[373256008,1752923500216,-480.0,0.0002093,2]
[373256009,1752923500226,-480.0,0.00020931,2]
[373256010,1752923500236,-1815.47,0.00020931,2]
[373256011,1752923500246,-960.6,0.00020931,2]
[373256012,1752923500255,-480.0,0.00020931,2]
[373256013,1752923500265,-740.01,0.00020931,2]
[373256014,1752923500274,-611.46,0.00020931,2]
[373256015,1752923500285,-480.0,0.00020931,2]
[373256016,1752923500294,-640.66,0.00020931,2]
[373256017,1752923500303,-3120.9,0.00020931,2]
[373256018,1752923500313,-576.22,0.00020931,2]
[373256019,1752923500323,-480.0,0.00020931,2]
[373256020,1752923500333,-480.0,0.00020931,2]
[373256021,1752923500342,-1090.9,0.00020931,2]
[373256022,1752923500353,-505.4,0.00020931,2]
[373256023,1752923500363,-2170.19,0.00020931,2]
[373256024,1752923500372,-1446.51,0.00020931,2]
[373256025,1752923500382,-2791.79,0.00020931,2]
[373256026,1752923500391,-3957.3,0.00020931,2]
[373256027,1752923500400,-2107.89,0.00020931,2]
[373256028,1752923500410,-719.45,0.00020931,2]
[373256029,1752923500419,-572.96,0.00020931,2]
[373256030,1752923500428,-484.19,0.00020931,2]
[373256031,1752923500438,-585.55,0.00020931,2]
[373256032,1752923500447,-817.32,0.00020931,2]
[373256033,1752923500456,-2393.91,0.00020931,2]
[373256034,1752923500465,-480.0,0.00020931,2]
[373256035,1752923500474,-1478.18,0.00020931,2]
[373256036,1752923500483,-707.73,0.00020931,2]
[373256037,1752923500493,-595.11,0.00020931,2]
[373256038,1752923500502,-782.12,0.00020931,2]
[373256039,1752923500512,-480.0,0.00020931,2]
[373256040,1752923500521,-853.27,0.00020931,2]
[373256041,1752923500530,-1300.19,0.00020931,2]
[373256042,1752923500540,-888.45,0.00020931,2]
[373256043,1752923500549,-779.19,0.00020931,2]
[373256044,1752923500559,-501.9,0.00020931,2]
[373256045,1752923500568,-747.6,0.00020931,2]
[373256046,1752923500577,-480.0,0.00020931,2]
[373256047,1752923500586,-642.57,0.00020931,2]
[373256048,1752923500599,-516.27,0.00020931,2]
[373256049,1752923500608,-876.37,0.00020931,2]
[373256050,1752923500618,-3056.86,0.00020931,2]
[373256051,1752923500628,-1752.83,0.00020931,2]
[373256052,1752923500638,-480.0,0.00020931,2]
[373256053,1752923500647,-480.0,0.00020931,2]
[373256054,1752923500656,-698.66,0.00020931,2]
[373256055,1752923500666,-480.0,0.00020931,2]
[373256056,1752923500675,-1230.21,0.00020931,2]
[373256057,1752923500684,-1211.46,0.00020931,2]
[373256058,1752923500693,-1731.02,0.00020931,2]
[373256059,1752923500702,-480.0,0.00020931,2]
[373256060,1752923500712,-981.21,0.00020931,2]
[373256061,1752923500722,-4034.3,0.00020931,2]
[373256062,1752923500731,-704.38,0.00020931,2]
[373256063,1752923500740,-480.0,0.00020931,2]
[373256064,1752923500749,-926.13,0.00020931,2]
[373256065,1752923500759,-18345.25,0.00020931,2]
[373256066,1752923500768,-1475.45,0.00020931,2]
[373256067,1752923500778,-1110.95,0.00020931,2]
[373256068,1752923500787,-1405.33,0.00020931,2]
[373256069,1752923500797,-188.93,0.00020931,2]
[373256070,1752923500806,-593.26,0.00020931,2]
[373256071,1752923500816,-2662.0,0.00020931,2]
[373256072,1752923500825,-496.53,0.00020931,2]
[373256073,1752923500835,-489.4,0.00020931,2]
[373256074,1752923500845,-1500.91,0.00020931,2]
[373256075,1752923500855,-594.51,0.00020931,2]
[373256076,1752923500864,-829.66,0.00020931,2]
[373256077,1752923500873,-566.69,0.00020931,2]
[373256078,1752923500883,-658.44,0.00020931,2]
[373256079,1752923500893,-588.02,0.00020931,2]
[373256080,1752923500902,-307.3,0.00020931,2]
[373256081,1752923500911,-2697.72,0.00020931,2]
[373256082,1752923500921,-870.46,0.00020931,2]
[373256083,1752923500930,-480.0,0.00020931,2]
[373256084,1752923500939,-480.0,0.00020931,2]
[373256085,1752923500948,-1772.6,0.00020931,2]
[373256086,1752923500958,-827.86,0.00020931,2]
[373256087,1752923500967,-480.0,0.00020931,2]
[373256088,1752923500976,-793.88,0.00020931,2]
[373256089,1752923500986,-497.53,0.00020931,2]
[373256090,1752923500995,-480.0,0.00020931,2]
[373256091,1752923501004,-557.4,0.00020931,2]
[373256092,1752923501014,-480.0,0.00020931,2]
[373256093,1752923501024,-535.74,0.00020931,2]
[373256094,1752923501033,-496.0,0.00020931,2]
[373256095,1752923501043,-616.76,0.00020931,2]
[373256096,1752923501053,-480.0,0.00020931,2]
[373256097,1752923501062,-480.0,0.00020931,2]
[373256098,1752923501072,-556.1,0.00020931,2]
[373256099,1752923501081,-480.0,0.00020931,2]
[373256100,1752923501091,-480.0,0.00020931,2]
[373256101,1752923501102,-509.79,0.00020931,2]
[373256102,1752923501112,-480.0,0.00020931,2]
[373256103,1752923501121,-563.29,0.00020931,2]
[373256104,1752923501130,-518.34,0.00020931,2]
[373256105,1752923501140,-488.36,0.00020931,2]
[373256106,1752923501152,-480.0,0.00020931,2]
[373256107,1752923501161,-280.54,0.00020931,2]
[373256108,1752923501171,-660.36,0.00020931,2]
[373256109,1752923501180,-563.78,0.00020931,2]
[373256110,1752923501190,-510.22,0.00020931,2]
[373256111,1752923501200,-480.0,0.00020931,2]
[373256112,1752923501210,-2035.71,0.00020931,2]
[373256113,1752923501220,-1478.43,0.00020931,2]
[373256114,1752923501229,-913.51,0.00020931,2]
[373256115,1752923501239,-480.0,0.00020931,2]
[373256116,1752923501249,-1163.42,0.00020931,2]
[373256117,1752923501259,-2145.01,0.00020931,2]
[373256118,1752923501269,-2541.86,0.00020931,2]
[373256119,1752923501279,-918.45,0.00020931,2]
[373256120,1752923501288,-480.0,0.00020931,2]
[373256121,1752923501298,-519.54,0.00020931,2]
[373256122,1752923501308,-484.74,0.00020931,2]
[373256123,1752923501317,-629.95,0.00020931,2]
[373256124,1752923501327,-2500.0,0.00020973,2]
[373256125,1752923501336,-210.6,0.00021,2]
[373256126,1752923501346,-150.0,0.00021,2]
[373256127,1752923501356,-1609.21,0.00021039,2]
[373256128,1752923501365,-420.0,0.0002104,2]
[373256129,1752923501374,-420.0,0.0002104,2]
[373256130,1752923501383,-420.0,0.0002104,2]
[373256131,1752923501392,-480.0,0.00021041,2]
[373256132,1752923501402,-1815.47,0.00021041,2]
[373256133,1752923501411,-960.6,0.00021041,2]
[373256134,1752923501420,-480.0,0.00021041,2]
[373256135,1752923501430,-740.01,0.00021041,2]
[373256136,1752923501439,-611.46,0.00021041,2]
[373256137,1752923501449,-480.0,0.00021041,2]
[373256138,1752923501458,-640.66,0.00021041,2]
[373256139,1752923501467,-3120.9,0.00021041,2]
[373256140,1752923501476,-576.22,0.00021041,2]
[373256141,1752923501486,-480.0,0.00021041,2]
[373256142,1752923501495,-480.0,0.00021041,2]
[373256143,1752923501505,-1090.9,0.00021041,2]
[373256144,1752923501514,-505.4,0.00021041,2]
[373256145,1752923501524,-2170.19,0.00021041,2]
[373256146,1752923501533,-1446.51,0.00021041,2]
[373256147,1752923501543,-2791.79,0.00021041,2]
[373256148,1752923501552,-3957.3,0.00021041,2]
[373256149,1752923501561,-2107.89,0.00021041,2]
[373256150,1752923501570,-719.45,0.00021041,2]
[373256151,1752923501579,-572.96,0.00021041,2]
[373256152,1752923501589,-484.19,0.00021041,2]
[373256153,1752923501598,-817.32,0.00021041,2]
[373256154,1752923501608,-2393.91,0.00021041,2]
[373256155,1752923501617,-480.0,0.00021041,2]
[373256156,1752923501626,-1478.18,0.00021041,2]
[373256157,1752923501635,-707.73,0.00021041,2]
[373256158,1752923501644,-595.11,0.00021041,2]
[373256159,1752923501654,-782.12,0.00021041,2]
[373256160,1752923501664,-480.0,0.00021041,2]
[373256161,1752923501674,-853.27,0.00021041,2]
[373256162,1752923501683,-1300.19,0.00021041,2]
[373256163,1752923501692,-888.45,0.00021041,2]
[373256164,1752923501702,-779.19,0.00021041,2]
[373256165,1752923501711,-501.9,0.00021041,2]
[373256166,1752923501721,-747.6,0.00021041,2]
[373256167,1752923501730,-387.07,0.00021041,2]
[373256168,1752923501739,-642.57,0.00021041,2]
[373256169,1752923501748,-516.27,0.00021041,2]
[373256170,1752923501758,-876.37,0.00021041,2]
[373256171,1752923501768,-3056.86,0.00021041,2]
[373256172,1752923501778,-1752.83,0.00021041,2]
[373256173,1752923501787,-480.0,0.00021041,2]
[373256174,1752923501796,-480.0,0.00021041,2]
[373256175,1752923501805,-698.66,0.00021041,2]
[373256176,1752923501814,-515.0877094,0.00021041,2]
[373256177,1752923501824,-1230.21,0.00021041,2]
[373256178,1752923501833,-1211.46,0.00021041,2]
[373256179,1752923501842,-1731.02,0.00021041,2]
[373256180,1752923501853,-480.0,0.00021041,2]
[373256181,1752923501862,-981.21,0.00021041,2]
[373256182,1752923501872,-4034.3,0.00021041,2]
[373256183,1752923501881,-704.38,0.00021041,2]
[373256184,1752923501891,-480.0,0.00021041,2]
[373256185,1752923501900,-926.13,0.00021041,2]
[373256186,1752923501910,-18345.25,0.00021041,2]
[373256187,1752923501920,-1475.45,0.00021041,2]
[373256188,1752923501930,-1110.95,0.00021041,2]
[373256189,1752923501940,-1405.33,0.00021041,2]
[373256190,1752923501949,-593.26,0.00021041,2]
[373256191,1752923501959,-2662.0,0.00021041,2]
[373256192,1752923501968,-496.53,0.00021041,2]
[373256193,1752923501977,-1500.91,0.00021041,2]
[373256194,1752923501987,-489.4,0.00021041,2]
[373256195,1752923501997,-594.51,0.00021041,2]
[373256196,1752923502006,-829.66,0.00021041,2]
[373256197,1752923502016,-566.69,0.00021041,2]
[373256198,1752923502025,-658.44,0.00021041,2]
[373256199,1752923502034,-588.02,0.00021041,2]
[373256200,1752923502044,-2697.72,0.00021041,2]
[373256201,1752923502054,-480.0,0.00021041,2]
[373256202,1752923502063,-480.0,0.00021041,2]
[373256203,1752923502073,-870.46,0.00021041,2]
[373256204,1752923502082,-1772.6,0.00021041,2]
[373256205,1752923502091,-827.86,0.00021041,2]
[373256206,1752923502101,-480.0,0.00021041,2]
[373256207,1752923502111,-793.88,0.00021041,2]
[373256208,1752923502120,-497.53,0.00021041,2]
[373256209,1752923502129,-480.0,0.00021041,2]
[373256210,1752923502139,-557.4,0.00021041,2]
[373256211,1752923502151,-480.0,0.00021041,2]
[373256212,1752923502161,-535.74,0.00021041,2]
[373256213,1752923502171,-496.0,0.00021041,2]
[373256214,1752923502180,-616.76,0.00021041,2]
[373256215,1752923502191,-480.0,0.00021041,2]
[373256216,1752923502199,-480.0,0.00021041,2]
[373256217,1752923502209,-556.1,0.00021041,2]
[373256218,1752923502219,-480.0,0.00021041,2]
[373256219,1752923502229,-480.0,0.00021041,2]
[373256220,1752923502239,-509.79,0.00021041,2]
[373256221,1752923502248,-480.0,0.00021041,2]
[373256222,1752923502259,-563.29,0.00021041,2]
[373256223,1752923502269,-518.34,0.00021041,2]
[373256224,1752923502278,-488.36,0.00021041,2]
[373256225,1752923502288,-175.48,0.00021041,2]
[373256226,1752923502298,-660.36,0.00021041,2]
[373256227,1752923502317,-563.78,0.00021041,2]
[373256228,1752923502327,-510.22,0.00021041,2]
[373256229,1752923502337,-520.15310381,0.00021041,2]
[373256230,1752923502346,-2035.71,0.00021041,2]
[373256231,1752923502355,-1478.43,0.00021041,2]
[373256232,1752923502365,-913.51,0.00021041,2]
[373256233,1752923502375,-480.0,0.00021041,2]
[373256234,1752923502385,-1163.42,0.00021041,2]
[373256235,1752923502394,-2145.01,0.00021041,2]
[373256236,1752923502403,-2541.86,0.00021041,2]
[373256237,1752923502412,-918.45,0.00021041,2]
[373256238,1752923502422,-480.0,0.00021041,2]
[373256239,1752923502430,-519.54,0.00021041,2]
[373256240,1752923502439,-484.74,0.00021041,2]
[373256241,1752923502449,-629.95,0.00021041,2]
[373256242,1752923502458,-161.65,0.00021101,2]
[373256243,1752923502467,-154.92052531,0.0002112,2]
[373256244,1752923502477,-207.4,0.0002112,2]
[373256245,1752923502486,-160.0,0.0002112,2]
[373256246,1752923502495,-151.0,0.0002112,2]
[373256247,1752923502505,-151.0,0.0002112,2]
[373256248,1752923502513,-238.93365144,0.0002112,2]
[373256249,1752923502523,-7142.856,0.0002112,2]
[373256250,1752923502531,-453.99022708,0.0002112,2]
[373256251,1752923502540,-346.92554585,0.0002112,2]
[373256252,1752923502549,-480.0,0.0002115,2]
[373256253,1752923502559,-1815.47,0.0002115,2]
[373256254,1752923502568,-960.6,0.0002115,2]
[373256255,1752923502576,-480.0,0.0002115,2]
[373256256,1752923502586,-740.01,0.0002115,2]
[373256257,1752923502595,-611.46,0.0002115,2]
[373256258,1752923502606,-480.0,0.0002115,2]
[373256259,1752923502616,-640.66,0.0002115,2]
[373256260,1752923502625,-3120.9,0.0002115,2]
[373256261,1752923502634,-576.22,0.0002115,2]
[373256262,1752923502644,-480.0,0.0002115,2]
[373256263,1752923502653,-480.0,0.0002115,2]
[373256264,1752923502662,-1090.9,0.0002115,2]
[373256265,1752923502672,-505.4,0.0002115,2]
[373256266,1752923502681,-2170.19,0.0002115,2]
[373256267,1752923502692,-1446.51,0.0002115,2]
[373256268,1752923502701,-2791.79,0.0002115,2]
[373256269,1752923502711,-3957.3,0.0002115,2]
[373256270,1752923502720,-2107.89,0.0002115,2]
[373256271,1752923502730,-719.45,0.0002115,2]
[373256272,1752923502740,-572.96,0.0002115,2]
[373256273,1752923502749,-484.19,0.0002115,2]
[373256274,1752923502759,-2393.91,0.0002115,2]
[373256275,1752923502769,-817.32,0.0002115,2]
[373256276,1752923502778,-480.0,0.0002115,2]
[373256277,1752923502787,-1478.18,0.0002115,2]
[373256278,1752923502796,-707.73,0.0002115,2]
[373256279,1752923502805,-595.11,0.0002115,2]
[373256280,1752923502815,-782.12,0.0002115,2]
[373256281,1752923502825,-480.0,0.0002115,2]
[373256282,1752923502835,-853.27,0.0002115,2]
[373256283,1752923502845,-1300.19,0.0002115,2]
[373256284,1752923502862,-888.45,0.0002115,2]
[373256285,1752923502871,-779.19,0.0002115,2]
[373256286,1752923502882,-501.9,0.0002115,2]
[373256287,1752923502892,-747.6,0.0002115,2]
[373256288,1752923502901,-642.57,0.0002115,2]
[373256289,1752923502911,-516.27,0.0002115,2]
[373256290,1752923502921,-876.37,0.0002115,2]
[373256291,1752923502930,-3056.86,0.0002115,2]
[373256292,1752923502939,-1752.83,0.0002115,2]
[373256293,1752923502948,-480.0,0.0002115,2]
[373256294,1752923502958,-480.0,0.0002115,2]
[373256295,1752923502967,-698.66,0.0002115,2]
[373256296,1752923502976,-1230.21,0.0002115,2]
[373256297,1752923502985,-1211.46,0.0002115,2]
[373256298,1752923502994,-1731.02,0.0002115,2]
[373256299,1752923503003,-480.0,0.0002115,2]
[373256300,1752923503013,-981.21,0.0002115,2]
[373256301,1752923503022,-4034.3,0.0002115,2]
[373256302,1752923503031,-704.38,0.0002115,2]
[373256303,1752923503040,-480.0,0.0002115,2]
[373256304,1752923503050,-926.13,0.0002115,2]
[373256305,1752923503059,-18345.25,0.0002115,2]
[373256306,1752923503069,-1475.45,0.0002115,2]
[373256307,1752923503078,-1110.95,0.0002115,2]
[373256308,1752923503087,-1405.33,0.0002115,2]
[373256309,1752923503096,-593.26,0.0002115,2]
[373256310,1752923503111,-2662.0,0.0002115,2]
[373256311,1752923503120,-496.53,0.0002115,2]
[373256312,1752923503130,-1500.91,0.0002115,2]
[373256313,1752923503139,-489.4,0.0002115,2]
[373256314,1752923503152,-594.51,0.0002115,2]
[373256315,1752923503161,-829.66,0.0002115,2]
[373256316,1752923503170,-566.69,0.0002115,2]
[373256317,1752923503179,-658.44,0.0002115,2]
[373256318,1752923503189,-588.02,0.0002115,2]
[373256319,1752923503199,-2697.72,0.0002115,2]
[373256320,1752923503209,-480.0,0.0002115,2]
[373256321,1752923503218,-480.0,0.0002115,2]
[373256322,1752923503228,-870.46,0.0002115,2]
[373256323,1752923503238,-1772.6,0.0002115,2]
[373256324,1752923503247,-827.86,0.0002115,2]
[373256325,1752923503257,-480.0,0.0002115,2]
[373256326,1752923503266,-793.88,0.0002115,2]
[373256327,1752923503276,-497.53,0.0002115,2]
[373256328,1752923503285,-480.0,0.0002115,2]
[373256329,1752923503294,-557.4,0.0002115,2]
[373256330,1752923503304,-480.0,0.0002115,2]
[373256331,1752923503313,-535.74,0.0002115,2]
[373256332,1752923503323,-496.0,0.0002115,2]
[373256333,1752923503332,-616.76,0.0002115,2]
[373256334,1752923503341,-480.0,0.0002115,2]
[373256335,1752923503355,-480.0,0.0002115,2]
[373256336,1752923503364,-556.1,0.0002115,2]
[373256337,1752923503375,-480.0,0.0002115,2]
[373256338,1752923503384,-480.0,0.0002115,2]
[373256339,1752923503394,-509.79,0.0002115,2]
[373256340,1752923503404,-480.0,0.0002115,2]
[373256341,1752923503414,-563.29,0.0002115,2]
[373256342,1752923503424,-518.34,0.0002115,2]
[373256343,1752923503624,-488.36,0.0002115,2]
[373256344,1752923503634,-660.36,0.0002115,2]
[373256345,1752923503645,-563.78,0.0002115,2]
[373256346,1752923503654,-510.22,0.0002115,2]
[373256347,1752923503664,-2035.71,0.0002115,2]
[373256348,1752923503673,-1478.43,0.0002115,2]
[373256349,1752923503683,-913.51,0.0002115,2]
[373256350,1752923503693,-480.0,0.0002115,2]
[373256351,1752923503703,-1163.42,0.0002115,2]
[373256352,1752923503713,-2541.86,0.0002115,2]
[373256353,1752923503723,-814.50507296,0.0002115,2]
[373256354,1752923503947,-863.43854883,0.00019945,2]
[373256355,1752923503964,-480.0,0.00019178,2]
[373256356,1752923503973,-2198.95145117,0.00019945,2]
[373256357,1752923503983,-1330.50492704,0.0002115,2]
[373256358,1752923503992,-918.45,0.0002115,2]
[373256359,1752923504001,-436.02,0.0002115,2]
[373256360,1752923504010,-519.54,0.0002115,2]
[373256361,1752923504019,-629.95,0.0002115,2]
[373256362,1752923504029,-484.74,0.0002115,2]
[373256363,1752923504038,-785.07470098,0.0002116,4]
[373256364,1752923504047,-785.07470098,0.0002116,4]
[373256365,1752923504057,-785.07470098,0.0002116,4]
[373256366,1752923504066,-785.07470098,0.0002116,4]
[373256367,1752923504075,-785.07470098,0.0002116,4]
[373256368,1752923504084,-785.07470098,0.0002116,4]
[373256369,1752923504093,-785.07470098,0.0002116,4]
[373256370,1752923504104,-785.07470098,0.0002116,4]
[373256371,1752923504113,-785.07470098,0.0002116,4]
[373256372,1752923504124,-785.07470098,0.0002116,4]
[373256373,1752923504133,-785.07470098,0.0002116,4]
[373256374,1752923504143,-785.07470098,0.0002116,4]
[373256375,1752923504154,-785.07470098,0.0002116,4]
[373256376,1752923504164,-785.07470098,0.0002116,4]
[373256377,1752923504173,-785.07470098,0.0002116,4]
[373256378,1752923504183,-785.07470098,0.0002116,4]
[373256379,1752923504193,-785.07470098,0.0002116,4]
[373256380,1752923504203,-785.07470098,0.0002116,4]
[373256381,1752923504212,-785.07470098,0.0002116,4]
[373256382,1752923504223,-785.07,0.0002116,4]
[373256383,1752923504233,-595.6562818,0.0002116,4]
[373256384,1752923504243,-595.6562818,0.0002116,4]
[373256385,1752923504253,-595.6562818,0.0002116,4]
[373256386,1752923504263,-595.6562818,0.0002116,4]
[373256387,1752923504273,-595.6562818,0.0002116,4]
[373256388,1752923504282,-595.6562818,0.0002116,4]
[373256389,1752923504292,-595.6562818,0.0002116,4]
[373256390,1752923504302,-595.6562818,0.0002116,4]
[373256391,1752923504311,-595.6562818,0.0002116,4]
[373256392,1752923504320,-595.6562818,0.0002116,4]
[373256393,1752923504330,-595.6562818,0.0002116,4]
[373256394,1752923504339,-595.6562818,0.0002116,4]
[373256395,1752923504350,-595.6562818,0.0002116,4]
[373256396,1752923504359,-595.6562818,0.0002116,4]
[373256397,1752923504368,-595.6562818,0.0002116,4]
[373256398,1752923504378,-595.6562818,0.0002116,4]
[373256399,1752923504387,-595.6562818,0.0002116,4]
[373256400,1752923504396,-595.6562818,0.0002116,4]
[373256401,1752923504405,-595.6562818,0.0002116,4]
[373256402,1752923504415,-595.65,0.0002116,4]
[373256403,1752923504425,-981.67722865,0.0002116,4]
[373256404,1752923504434,-981.67722865,0.0002116,4]
[373256405,1752923504444,-981.67722865,0.0002116,4]
[373256406,1752923504453,-981.67722865,0.0002116,4]
[373256407,1752923504463,-981.67722865,0.0002116,4]
[373256408,1752923504472,-981.67722865,0.0002116,4]
[373256409,1752923504482,-981.67722865,0.0002116,4]